fUSD/lending_fUSD_20250308
["ID","MTS","AMOUNT","RATE_DAILY","PERIOD"]
[355662505,1741446655547,-1492.93,9.041e-05,2]
[355662506,1741446655556,-1382.87,9.041e-05,2]
[355662507,1741446655566,-1319.49,9.041e-05,2]
[355662508,1741446655576,-6222.61,9.041e-05,2]
[355662509,1741446655585,-2187.41,9.041e-05,2]
[355662510,1741446655594,-3089.68,9.041e-05,2]
[355662511,1741446655604,-752.18,9.041e-05,2]
[355662512,1741446655613,-789.79,9.041e-05,2]
[355662513,1741446655622,-7135.9,9.041e-05,2]
[355662514,1741446655632,-1011.66,9.041e-05,2]
[355662515,1741446655643,-935.65,9.041e-05,2]
[355662516,1741446655653,-605.23,9.041e-05,2]
[355662517,1741446655662,-2586.02,9.041e-05,2]
[355662518,1741446655673,-567.75,9.041e-05,2]
[355662519,1741446655682,-1687.87,9.041e-05,2]
[355662520,1741446655691,-2773.91,9.041e-05,2]
[355662521,1741446655700,-2234.16,9.041e-05,2]
[355662522,1741446655710,-500.0,9.041e-05,2]
[355662523,1741446655728,-1286.66,9.041e-05,2]
[355662524,1741446655738,-3065.33,9.041e-05,2]
[355662525,1741446655748,-1873.66,9.041e-05,2]
[355662526,1741446655757,-872.98,9.041e-05,2]
[355662527,1741446655767,-3353.44,9.041e-05,2]
[355662528,1741446655776,-500.0,9.041e-05,2]
[355662529,1741446655786,-500.0,9.041e-05,2]
[355662530,1741446655795,-1313.25,9.041e-05,2]
[355662531,1741446655804,-1263.26,9.041e-05,2]
[355662532,1741446655814,-12466.06,9.041e-05,2]
[355662533,1741446655824,-1787.93,9.041e-05,2]
[355662534,1741446655833,-500.0,9.041e-05,2]
[355662535,1741446655843,-2452.64,9.041e-05,2]
[355662536,1741446655855,-500.0,9.041e-05,2]
[355662537,1741446655864,-3102.63,9.041e-05,2]
[355662538,1741446655876,-500.0,9.041e-05,2]
[355662539,1741446655886,-6667.27,9.041e-05,2]
[355662540,1741446655895,-3597.03,9.041e-05,2]
[355662541,1741446655905,-1466.47,9.041e-05,2]
[355662542,1741446655914,-500.0,9.041e-05,2]
[355662543,1741446655923,-1882.29,9.041e-05,2]
[355662544,1741446655933,-748.39,9.041e-05,2]
[355662545,1741446655942,-750.88,9.041e-05,2]
[355662546,1741446655952,-500.0,9.041e-05,2]
[355662547,1741446655961,-3171.58,9.041e-05,2]
[355662548,1741446655971,-2528.21,9.041e-05,2]
[355662549,1741446655980,-11873.2,9.041e-05,2]
[355662550,1741446655990,-767.32,9.041e-05,2]
[355662551,1741446656000,-6682.02,9.041e-05,2]
[355662552,1741446656009,-998.16,9.041e-05,2]
[355662553,1741446656019,-500.0,9.041e-05,2]
[355662554,1741446656029,-2317.51,9.041e-05,2]
[355662555,1741446656039,-2878.83,9.041e-05,2]
[355662556,1741446656048,-1595.81,9.041e-05,2]
[355662557,1741446656057,-809.06,9.041e-05,2]
[355662558,1741446656067,-500.0,9.041e-05,2]
[355662559,1741446656076,-715.74,9.041e-05,2]
[355662560,1741446656086,-1060.31,9.041e-05,2]
[355662561,1741446656096,-3137.33,9.041e-05,2]
[355662562,1741446656105,-500.0,9.041e-05,2]
[355662563,1741446656115,-2049.09,9.041e-05,2]
[355662564,1741446656125,-6268.69,9.041e-05,2]
[355662565,1741446656142,-661.24,9.041e-05,2]
[355662566,1741446656153,-3241.15,9.041e-05,2]
[355662567,1741446656165,-520.51,9.041e-05,2]
[355662568,1741446656175,-977.94,9.041e-05,2]
[355662569,1741446656184,-5930.3,9.041e-05,2]
[355662570,1741446656194,-500.0,9.041e-05,2]
[355662571,1741446656204,-947.73,9.041e-05,2]
[355662572,1741446656213,-534.17,9.041e-05,2]
[355662573,1741446656222,-500.0,9.041e-05,2]
[355662574,1741446656232,-530.59,9.041e-05,2]
[355662575,1741446656244,-500.0,9.041e-05,2]
[355662576,1741446656255,-1518.87,9.041e-05,2]
[355662577,1741446656265,-29965.23,9.041e-05,2]
[355662578,1741446656274,-500.0,9.041e-05,2]
[355662579,1741446656283,-500.0,9.041e-05,2]
[355662580,1741446656293,-909.15,9.041e-05,2]
[355662581,1741446656302,-886.2156893,9.067e-05,2]
[355662582,1741446656311,-433.64969305,9.114e-05,2]
[355662583,1741446656321,-886.2156893,9.138e-05,2]
[355662584,1741446656331,-886.2156893,9.208e-05,2]
[355662585,1741446656340,-170.35,9.237e-05,2]
[355662586,1741446656350,-1000.0,9.247e-05,2]
[355662587,1741446656359,-886.2156893,9.279e-05,2]
[355662588,1741446656368,-2067.94,9.314e-05,2]
[355662589,1741446656378,-500.0,9.315e-05,2]
[355662590,1741446656388,-500.0,9.315e-05,2]
[355662591,1741446656397,-500.0,9.315e-05,2]
[355662592,1741446656407,-500.0,9.315e-05,2]
[355662593,1741446656416,-500.0,9.315e-05,2]
[355662594,1741446656425,-500.0,9.315e-05,2]
[355662595,1741446656435,-500.0,9.315e-05,2]
[355662596,1741446656444,-500.0,9.315e-05,2]
[355662597,1741446656454,-500.0,9.315e-05,2]
[355662598,1741446656463,-500.0,9.315e-05,2]
[355662599,1741446656473,-500.0,9.315e-05,2]
[355662600,1741446656482,-735.61,9.315e-05,2]
[355662601,1741446656492,-623.78,9.315e-05,2]
[355662602,1741446656502,-500.0,9.315e-05,2]
[355662603,1741446656512,-500.0,9.315e-05,2]
[355662604,1741446656522,-500.0,9.315e-05,2]
[355662605,1741446656531,-500.0,9.315e-05,2]
[355662606,1741446656541,-500.0,9.315e-05,2]
[355662607,1741446656550,-500.0,9.315e-05,2]
[355662608,1741446656560,-500.0,9.315e-05,2]
[355662609,1741446656570,-500.0,9.315e-05,2]
[355662610,1741446656579,-500.0,9.315e-05,2]
[355662611,1741446656589,-150.096753,9.315e-05,2]
[355662612,1741446656598,-500.0,9.315e-05,2]
[355662613,1741446656607,-516.61,9.315e-05,2]
[355662614,1741446656617,-546.602339,9.315e-05,2]
[355662615,1741446656627,-500.0,9.315e-05,2]
[355662616,1741446656636,-500.0,9.315e-05,2]
[355662617,1741446656646,-1342.46,9.315e-05,2]
[355662618,1741446656656,-500.0,9.315e-05,2]
[355662619,1741446656665,-386.3317102,9.315e-05,2]
[355662620,1741446656675,-500.0,9.315e-05,2]
[355662621,1741446656684,-1333.21,9.315e-05,2]
[355662622,1741446656694,-500.0,9.315e-05,2]
[355662623,1741446656704,-500.0,9.315e-05,2]
[355662624,1741446656713,-539.75,9.315e-05,2]
[355662625,1741446656723,-500.0,9.315e-05,2]
[355662626,1741446656732,-500.0,9.315e-05,2]
[355662627,1741446656742,-500.0,9.315e-05,2]
[355662628,1741446656752,-523.52,9.315e-05,2]
[355662629,1741446656763,-430.666975,9.315e-05,2]
[355662630,1741446656773,-537.17,9.315e-05,2]
[355662631,1741446656783,-515.4,9.315e-05,2]
[355662632,1741446656794,-500.0,9.315e-05,2]
[355662633,1741446656805,-500.0,9.315e-05,2]
[355662634,1741446656815,-500.0,9.315e-05,2]
[355662635,1741446656825,-619.77,9.315e-05,2]
[355662636,1741446656835,-500.0,9.315e-05,2]
[355662637,1741446656847,-500.0,9.315e-05,2]
[355662638,1741446656856,-500.0,9.315e-05,2]
[355662639,1741446656866,-1329.51,9.315e-05,2]
[355662640,1741446656876,-656.82,9.315e-05,2]
[355662641,1741446656886,-528.79,9.315e-05,2]
[355662642,1741446656896,-500.0,9.315e-05,2]
[355662643,1741446656906,-500.0,9.315e-05,2]
[355662644,1741446656916,-500.0,9.315e-05,2]
[355662645,1741446656926,-500.0,9.315e-05,2]
[355662646,1741446656936,-725.15,9.315e-05,2]
[355662647,1741446656946,-500.0,9.315e-05,2]
[355662648,1741446656956,-845.02,9.315e-05,2]
[355662649,1741446656966,-500.0,9.315e-05,2]
[355662650,1741446656975,-500.0,9.315e-05,2]
[355662651,1741446656985,-500.0,9.315e-05,2]
[355662652,1741446656994,-500.0,9.315e-05,2]
[355662653,1741446657005,-500.0,9.315e-05,2]
[355662654,1741446657016,-500.0,9.315e-05,2]
[355662655,1741446657025,-750.04,9.315e-05,2]
[355662656,1741446657035,-861.7,9.315e-05,2]
[355662657,1741446657045,-500.0,9.315e-05,2]
[355662658,1741446657054,-500.0,9.315e-05,2]
[355662659,1741446657064,-500.0,9.315e-05,2]
[355662660,1741446657074,-612.87,9.315e-05,2]
[355662661,1741446657083,-500.0,9.315e-05,2]
[355662662,1741446657094,-605.5,9.315e-05,2]
[355662663,1741446657103,-500.0,9.315e-05,2]
[355662664,1741446657113,-940.88,9.315e-05,2]
[355662665,1741446657123,-232.8144541,9.315e-05,2]
[355662666,1741446657288,-552.7,9.315e-05,2]
[355662667,1741446657304,-500.0,9.315e-05,2]
[355662668,1741446657313,-679.12,9.315e-05,2]
[355662669,1741446657323,-808.91,9.315e-05,2]
[355662670,1741446657333,-500.0,9.315e-05,2]
[355662671,1741446657342,-500.0,9.315e-05,2]
[355662672,1741446657352,-500.0,9.315e-05,2]
[355662673,1741446657361,-500.0,9.315e-05,2]
[355662674,1741446657371,-500.0,9.315e-05,2]
[355662675,1741446657381,-597.17,9.315e-05,2]
[355662676,1741446657390,-500.0,9.315e-05,2]
[355662677,1741446657401,-500.0,9.315e-05,2]
[355662678,1741446657410,-500.0,9.315e-05,2]
[355662679,1741446657420,-500.0,9.315e-05,2]
[355662680,1741446657429,-500.0,9.315e-05,2]
[355662681,1741446657439,-500.0,9.315e-05,2]
[355662682,1741446657449,-500.0,9.315e-05,2]
[355662683,1741446657458,-500.0,9.315e-05,2]
[355662684,1741446657468,-684.8,9.315e-05,2]
[355662685,1741446657477,-500.0,9.315e-05,2]
[355662686,1741446657487,-603.17,9.315e-05,2]
[355662687,1741446657497,-500.0,9.315e-05,2]
[355662688,1741446657506,-538.61,9.315e-05,2]
[355662689,1741446657516,-523.8,9.315e-05,2]
[355662690,1741446657525,-500.0,9.315e-05,2]
[355662691,1741446657536,-734.33,9.315e-05,2]
[355662692,1741446657548,-500.0,9.315e-05,2]
[355662693,1741446657559,-500.0,9.315e-05,2]
[355662694,1741446657569,-500.0,9.315e-05,2]
[355662695,1741446657580,-500.0,9.315e-05,2]
[355662696,1741446657590,-647.36,9.315e-05,2]
[355662697,1741446657601,-703.82,9.315e-05,2]
[355662698,1741446657611,-500.0,9.315e-05,2]
[355662699,1741446657623,-500.0,9.315e-05,2]
[355662700,1741446657633,-500.0,9.315e-05,2]
[355662701,1741446657645,-500.0,9.315e-05,2]
[355662702,1741446657655,-597.5,9.315e-05,2]
[355662703,1741446657664,-500.0,9.315e-05,2]
[355662704,1741446657674,-500.0,9.315e-05,2]
[355662705,1741446657685,-500.0,9.315e-05,2]
[355662706,1741446657696,-500.0,9.315e-05,2]
[355662707,1741446657707,-500.0,9.315e-05,2]
[355662708,1741446657718,-1034.42,9.315e-05,2]
[355662709,1741446657729,-500.0,9.315e-05,2]
[355662710,1741446657739,-500.0,9.315e-05,2]
[355662711,1741446657748,-840.2,9.315e-05,2]
[355662712,1741446657758,-500.0,9.315e-05,2]
[355662713,1741446657768,-537.19,9.315e-05,2]
[355662714,1741446657777,-519.27,9.315e-05,2]
[355662715,1741446657787,-698.43,9.315e-05,2]
[355662716,1741446657796,-971.9,9.315e-05,2]
[355662717,1741446657806,-860.51,9.315e-05,2]
[355662718,1741446657815,-1076.74,9.315e-05,2]
[355662719,1741446657825,-500.0,9.315e-05,2]
[355662720,1741446657835,-500.0,9.315e-05,2]
[355662721,1741446657844,-500.0,9.315e-05,2]
[355662722,1741446657853,-500.0,9.315e-05,2]
[355662723,1741446657863,-1006.12,9.315e-05,2]
[355662724,1741446657873,-896.64,9.315e-05,2]
[355662725,1741446657883,-500.0,9.315e-05,2]
[355662726,1741446657892,-990.37,9.315e-05,2]
[355662727,1741446657902,-630.4,9.315e-05,2]
[355662728,1741446657912,-1115.53,9.315e-05,2]
[355662729,1741446657922,-890.74,9.315e-05,2]
[355662730,1741446657932,-500.0,9.315e-05,2]
[355662731,1741446657942,-952.14,9.315e-05,2]
[355662732,1741446657951,-500.0,9.315e-05,2]
[355662733,1741446657961,-651.07,9.315e-05,2]
[355662734,1741446657972,-500.0,9.315e-05,2]
[355662735,1741446657982,-916.97,9.315e-05,2]
[355662736,1741446657992,-500.0,9.315e-05,2]
[355662737,1741446658002,-500.0,9.315e-05,2]
[355662738,1741446658012,-1200.33,9.315e-05,2]
[355662739,1741446658021,-1245.04,9.315e-05,2]
[355662740,1741446658030,-500.0,9.315e-05,2]
[355662741,1741446658040,-1162.82,9.315e-05,2]
[355662742,1741446658049,-585.65,9.315e-05,2]
[355662743,1741446658059,-500.0,9.315e-05,2]
[355662744,1741446658069,-501.66,9.315e-05,2]
[355662745,1741446658079,-1042.26,9.315e-05,2]
[355662746,1741446658089,-579.55,9.315e-05,2]
[355662747,1741446658098,-500.0,9.315e-05,2]
[355662748,1741446658108,-549.35,9.315e-05,2]
[355662749,1741446658118,-500.0,9.315e-05,2]
[355662750,1741446658127,-650.85,9.315e-05,2]
[355662751,1741446658136,-500.0,9.315e-05,2]
[355662752,1741446658146,-963.61,9.315e-05,2]
[355662753,1741446658155,-500.0,9.315e-05,2]
[355662754,1741446658167,-792.47,9.315e-05,2]
[355662755,1741446658176,-633.41,9.315e-05,2]
[355662756,1741446658186,-1253.44,9.315e-05,2]
[355662757,1741446658195,-586.42,9.315e-05,2]
[355662758,1741446658206,-500.0,9.315e-05,2]
[355662759,1741446658215,-578.57,9.315e-05,2]
[355662760,1741446658224,-2224.71,9.315e-05,2]
[355662761,1741446658236,-864.36,9.315e-05,2]
[355662762,1741446658246,-500.0,9.315e-05,2]
[355662763,1741446658255,-2083.12,9.315e-05,2]
[355662764,1741446658264,-6852.79,9.315e-05,2]
[355662765,1741446658274,-882.64,9.315e-05,2]
[355662766,1741446658283,-9943.09,9.315e-05,2]
[355662767,1741446658293,-500.0,9.315e-05,2]
[355662768,1741446658302,-841.33,9.315e-05,2]
[355662769,1741446658313,-2354.42,9.315e-05,2]
[355662770,1741446658322,-1442.37,9.315e-05,2]
[355662771,1741446658332,-1734.17,9.315e-05,2]
[355662772,1741446658342,-773.96,9.315e-05,2]
[355662773,1741446658353,-500.0,9.315e-05,2]
[355662774,1741446658362,-500.0,9.315e-05,2]
[355662775,1741446658372,-1101.28,9.315e-05,2]
[355662776,1741446658381,-500.0,9.315e-05,2]
[355662777,1741446658391,-5042.13,9.315e-05,2]
[355662778,1741446658400,-594.4,9.315e-05,2]
[355662779,1741446658410,-4139.0,9.315e-05,2]
[355662780,1741446658420,-627.02,9.315e-05,2]
[355662781,1741446658429,-855.4,9.315e-05,2]
[355662782,1741446658439,-2225.22,9.315e-05,2]
[355662783,1741446658448,-500.0,9.315e-05,2]
[355662784,1741446658457,-1003.48,9.315e-05,2]
[355662785,1741446658467,-1041.41,9.315e-05,2]
[355662786,1741446658476,-3456.85,9.315e-05,2]
[355662787,1741446658485,-1874.74,9.315e-05,2]
[355662788,1741446658495,-507.29,9.315e-05,2]
[355662789,1741446658504,-2411.52,9.315e-05,2]
[355662790,1741446658513,-1414.87,9.315e-05,2]
[355662791,1741446658523,-652.26,9.315e-05,2]
[355662792,1741446658532,-18731.69,9.315e-05,2]
[355662793,1741446658541,-879.88,9.315e-05,2]
[355662794,1741446658551,-500.0,9.315e-05,2]
[355662795,1741446658560,-2387.01,9.315e-05,2]
[355662796,1741446658570,-1562.11,9.315e-05,2]
[355662797,1741446658579,-631.73,9.315e-05,2]
[355662798,1741446658589,-1387.09,9.315e-05,2]
[355662799,1741446658598,-500.0,9.315e-05,2]
[355662800,1741446658608,-500.0,9.315e-05,2]
[355662801,1741446658617,-1680.87,9.315e-05,2]
[355662802,1741446658627,-778.74,9.315e-05,2]
[355662803,1741446658636,-644.99,9.315e-05,2]
[355662804,1741446658645,-1964.21,9.315e-05,2]
[355662805,1741446658656,-1755.99,9.315e-05,2]
[355662806,1741446658665,-553.09,9.315e-05,2]
[355662807,1741446658675,-1497.39,9.315e-05,2]
[355662808,1741446658684,-500.0,9.315e-05,2]
[355662809,1741446658693,-527.72,9.315e-05,2]
[355662810,1741446658703,-566.58,9.315e-05,2]
[355662811,1741446658712,-632.67,9.315e-05,2]
[355662812,1741446658722,-2235.53,9.315e-05,2]
[355662813,1741446658733,-2769.7,9.315e-05,2]
[355662814,1741446658742,-1357.3,9.315e-05,2]
[355662815,1741446658752,-500.0,9.315e-05,2]
[355662816,1741446658761,-1590.98,9.315e-05,2]
[355662817,1741446658771,-1037.89,9.315e-05,2]
[355662818,1741446658781,-1347.66,9.315e-05,2]
[355662819,1741446658790,-500.0,9.315e-05,2]
[355662820,1741446658800,-500.0,9.315e-05,2]
[355662821,1741446658809,-500.0,9.315e-05,2]
[355662822,1741446658819,-786.54,9.315e-05,2]
[355662823,1741446658828,-1863.08,9.315e-05,2]
[355662824,1741446658838,-500.0,9.315e-05,2]
[355662825,1741446658848,-1535.29,9.315e-05,2]
[355662826,1741446658857,-2515.6,9.315e-05,2]
[355662827,1741446658867,-500.0,9.315e-05,2]
[355662828,1741446658876,-6133.09,9.315e-05,2]
[355662829,1741446658886,-1075.32,9.315e-05,2]
[355662830,1741446658895,-785.85,9.315e-05,2]
[355662831,1741446658905,-1595.58,9.315e-05,2]
[355662832,1741446658915,-1347.38,9.315e-05,2]
[355662833,1741446658925,-1222.18,9.315e-05,2]
[355662834,1741446658936,-1497.11,9.315e-05,2]
[355662835,1741446658947,-1213.55,9.315e-05,2]
[355662836,1741446658958,-500.0,9.315e-05,2]
[355662837,1741446658968,-500.0,9.315e-05,2]
[355662838,1741446658978,-500.0,9.315e-05,2]
[355662839,1741446658988,-2879.6,9.315e-05,2]
[355662840,1741446658997,-1350.39,9.315e-05,2]
[355662841,1741446659007,-500.0,9.315e-05,2]
[355662842,1741446659016,-1051.85,9.315e-05,2]
[355662843,1741446659026,-4631.77,9.315e-05,2]
[355662844,1741446659035,-2984.49,9.315e-05,2]
[355662845,1741446659044,-572.79,9.315e-05,2]
[355662846,1741446659054,-2171.47,9.315e-05,2]
[355662847,1741446659066,-887.2,9.315e-05,2]
[355662848,1741446659076,-867.84,9.315e-05,2]
[355662849,1741446659085,-2262.85,9.315e-05,2]
[355662850,1741446659094,-1157.52,9.315e-05,2]
[355662851,1741446659104,-3584.31,9.315e-05,2]
[355662852,1741446659114,-1492.93,9.315e-05,2]
[355662853,1741446659124,-1382.87,9.315e-05,2]
[355662854,1741446659133,-1319.49,9.315e-05,2]
[355662855,1741446659143,-6222.61,9.315e-05,2]
[355662856,1741446659153,-2187.41,9.315e-05,2]
[355662857,1741446659167,-3089.68,9.315e-05,2]
[355662858,1741446659176,-752.18,9.315e-05,2]
[355662859,1741446659186,-789.79,9.315e-05,2]
[355662860,1741446659196,-7135.9,9.315e-05,2]
[355662861,1741446659206,-1011.66,9.315e-05,2]
[355662862,1741446659217,-935.65,9.315e-05,2]
[355662863,1741446659227,-605.23,9.315e-05,2]
[355662864,1741446659237,-2586.02,9.315e-05,2]
[355662865,1741446659248,-567.75,9.315e-05,2]
[355662866,1741446659259,-1687.87,9.315e-05,2]
[355662867,1741446659269,-2773.91,9.315e-05,2]
[355662868,1741446659279,-2234.16,9.315e-05,2]
[355662869,1741446659289,-500.0,9.315e-05,2]
[355662870,1741446659299,-1286.66,9.315e-05,2]
[355662871,1741446659308,-3065.33,9.315e-05,2]
[355662872,1741446659318,-1873.66,9.315e-05,2]
[355662873,1741446659327,-872.98,9.315e-05,2]
[355662874,1741446659336,-3353.44,9.315e-05,2]
[355662875,1741446659346,-500.0,9.315e-05,2]
[355662876,1741446659355,-500.0,9.315e-05,2]
[355662877,1741446659365,-1313.25,9.315e-05,2]
[355662878,1741446659375,-1263.26,9.315e-05,2]
[355662879,1741446659385,-12466.06,9.315e-05,2]
[355662880,1741446659396,-1787.93,9.315e-05,2]
[355662881,1741446659406,-500.0,9.315e-05,2]
[355662882,1741446659416,-2452.64,9.315e-05,2]
[355662883,1741446659426,-500.0,9.315e-05,2]
[355662884,1741446659436,-3102.63,9.315e-05,2]
[355662885,1741446659445,-500.0,9.315e-05,2]
[355662886,1741446659455,-6667.27,9.315e-05,2]
[355662887,1741446659464,-3597.03,9.315e-05,2]
[355662888,1741446659474,-1466.47,9.315e-05,2]
[355662889,1741446659483,-500.0,9.315e-05,2]
[355662890,1741446659493,-1882.29,9.315e-05,2]
[355662891,1741446659502,-748.39,9.315e-05,2]
[355662892,1741446659512,-750.88,9.315e-05,2]
[355662893,1741446659522,-500.0,9.315e-05,2]
[355662894,1741446659532,-3171.58,9.315e-05,2]
[355662895,1741446659542,-2528.21,9.315e-05,2]
[355662896,1741446659551,-11873.2,9.315e-05,2]
[355662897,1741446659561,-767.32,9.315e-05,2]
[355662898,1741446659571,-6682.02,9.315e-05,2]
[355662899,1741446659580,-998.16,9.315e-05,2]
[355662900,1741446659589,-500.0,9.315e-05,2]
[355662901,1741446659599,-2317.51,9.315e-05,2]
[355662902,1741446659608,-2878.83,9.315e-05,2]
[355662903,1741446659618,-1595.81,9.315e-05,2]
[355662904,1741446659627,-809.06,9.315e-05,2]
[355662905,1741446659637,-500.0,9.315e-05,2]
[355662906,1741446659646,-715.74,9.315e-05,2]
[355662907,1741446659656,-1060.31,9.315e-05,2]
[355662908,1741446659666,-3137.33,9.315e-05,2]
[355662909,1741446659675,-500.0,9.315e-05,2]
[355662910,1741446659685,-2049.09,9.315e-05,2]
[355662911,1741446659695,-6268.69,9.315e-05,2]
[355662912,1741446659764,-661.24,9.315e-05,2]
[355662913,1741446659774,-3241.15,9.315e-05,2]
[355662914,1741446659783,-520.51,9.315e-05,2]
[355662915,1741446659793,-977.94,9.315e-05,2]
[355662916,1741446659802,-5930.3,9.315e-05,2]
[355662917,1741446659811,-500.0,9.315e-05,2]
[355662918,1741446659821,-947.73,9.315e-05,2]
[355662919,1741446659830,-534.17,9.315e-05,2]
[355662920,1741446659839,-500.0,9.315e-05,2]
[355662921,1741446659849,-530.59,9.315e-05,2]
[355662922,1741446659859,-500.0,9.315e-05,2]
[355662923,1741446659869,-1518.87,9.315e-05,2]
[355662924,1741446659878,-29965.23,9.315e-05,2]
[355662925,1741446659888,-500.0,9.315e-05,2]
[355662926,1741446659899,-500.0,9.315e-05,2]
[355662927,1741446659908,-909.15,9.315e-05,2]
[355662928,1741446659918,-886.2156893,9.35e-05,2]
[355662929,1741446659927,-886.2156893,9.421e-05,2]
[355662930,1741446659936,-406.76,9.473e-05,2]
[355662931,1741446659946,-886.2156893,9.491e-05,2]
[355662932,1741446659955,-401505.52710586,9.5e-05,2]
[355662933,1741446659965,-150.0,9.562e-05,7]
[355662934,1741446659974,-886.2156893,9.562e-05,2]
[355662935,1741446659984,-433.64969305,9.587e-05,2]
[355662936,1741446659993,-2067.94,9.588e-05,2]
[355662937,1741446660004,-500.0,9.589e-05,2]
[355662938,1741446660014,-500.0,9.589e-05,2]
[355662939,1741446660024,-500.0,9.589e-05,2]
[355662940,1741446660033,-500.0,9.589e-05,2]
[355662941,1741446660043,-500.0,9.589e-05,2]
[355662942,1741446660052,-302.49246106,9.589e-05,2]
[355662943,1741446660061,-500.0,9.589e-05,2]
[355662944,1741446660071,-500.0,9.589e-05,2]
[355662945,1741446660080,-500.0,9.589e-05,2]
[355662946,1741446660090,-500.0,9.589e-05,2]
[355662947,1741446660100,-500.0,9.589e-05,2]
[355662948,1741446660109,-735.61,9.589e-05,2]
[355662949,1741446660118,-623.78,9.589e-05,2]
[355662950,1741446660129,-500.0,9.589e-05,2]
[355662951,1741446660139,-500.0,9.589e-05,2]
[355662952,1741446660149,-500.0,9.589e-05,2]
[355662953,1741446660160,-500.0,9.589e-05,2]
[355662954,1741446660170,-500.0,9.589e-05,2]
[355662955,1741446660180,-500.0,9.589e-05,2]
[355662956,1741446660190,-500.0,9.589e-05,2]
[355662957,1741446660200,-500.0,9.589e-05,2]
[355662958,1741446660210,-500.0,9.589e-05,2]
[355662959,1741446660220,-150.096753,9.589e-05,2]
[355662960,1741446660230,-500.0,9.589e-05,2]
[355662961,1741446660242,-516.61,9.589e-05,2]
[355662962,1741446660252,-546.602339,9.589e-05,2]
[355662963,1741446660262,-500.0,9.589e-05,2]
[355662964,1741446660272,-500.0,9.589e-05,2]
[355662965,1741446660282,-1342.46,9.589e-05,2]
[355662966,1741446660292,-500.0,9.589e-05,2]
[355662967,1741446660301,-500.0,9.589e-05,2]
[355662968,1741446660311,-1333.21,9.589e-05,2]
[355662969,1741446660321,-500.0,9.589e-05,2]
[355662970,1741446660332,-500.0,9.589e-05,2]
[355662971,1741446660343,-539.75,9.589e-05,2]
[355662972,1741446660352,-500.0,9.589e-05,2]
[355662973,1741446660361,-500.0,9.589e-05,2]
[355662974,1741446660371,-500.0,9.589e-05,2]
[355662975,1741446660381,-523.52,9.589e-05,2]
[355662976,1741446660390,-430.666975,9.589e-05,2]
[355662977,1741446660399,-537.17,9.589e-05,2]
[355662978,1741446660410,-515.4,9.589e-05,2]
[355662979,1741446660420,-500.0,9.589e-05,2]
[355662980,1741446660430,-500.0,9.589e-05,2]
[355662981,1741446660440,-500.0,9.589e-05,2]
[355662982,1741446660449,-619.77,9.589e-05,2]
[355662983,1741446660459,-190.12408461,9.589e-05,2]
[355662984,1741446660469,-500.0,9.589e-05,2]
[355662985,1741446660479,-500.0,9.589e-05,2]
[355662986,1741446660488,-1329.51,9.589e-05,2]
[355662987,1741446660497,-656.82,9.589e-05,2]
[355662988,1741446660507,-528.79,9.589e-05,2]
[355662989,1741446660516,-500.0,9.589e-05,2]
[355662990,1741446660526,-500.0,9.589e-05,2]
[355662991,1741446660535,-500.0,9.589e-05,2]
[355662992,1741446660544,-500.0,9.589e-05,2]
[355662993,1741446660554,-725.15,9.589e-05,2]
[355662994,1741446660563,-500.0,9.589e-05,2]
[355662995,1741446660573,-845.02,9.589e-05,2]
[355662996,1741446660586,-500.0,9.589e-05,2]
[355662997,1741446660595,-500.0,9.589e-05,2]
[355662998,1741446660605,-500.0,9.589e-05,2]
[355662999,1741446660614,-500.0,9.589e-05,2]
[355663000,1741446660623,-500.0,9.589e-05,2]
[355663001,1741446660633,-500.0,9.589e-05,2]
[355663002,1741446660642,-750.04,9.589e-05,2]
[355663003,1741446660651,-861.7,9.589e-05,2]
[355663004,1741446660661,-500.0,9.589e-05,2]